bitfinex/quotes_ETHUSD_20251130
["timestamp","ask_amount","ask_price","bid_price","bid_amount"]
[1764474612125,10.73344668,3005.6,3005.5,0.9714]
[1764474612453,10.94444668,3005.6,3005.5,0.9714]
[1764474612822,11.04363696,3005.6,3005.5,0.9714]
[1764474616953,10.94444668,3005.6,3005.5,0.9714]
[1764474617754,11.04363696,3005.6,3005.5,0.9714]
[1764474622570,10.94444668,3005.6,3005.5,0.9714]
[1764474624175,11.04363696,3005.6,3005.5,0.9714]
[1764474624746,10.94444668,3005.6,3005.5,0.9714]
[1764474626353,11.04363696,3005.6,3005.5,0.9714]
[1764474626676,10.94444668,3005.6,3005.5,0.9714]
[1764474626874,10.94444668,3005.6,3005.5,0.817849]
[1764474627677,10.94444668,3005.6,3005.5,0.818849]
[1764474630378,10.39751235,3005.6,3005.5,0.818849]
[1764474630670,10.60851235,3005.6,3005.5,0.818849]
[1764474630874,10.94444668,3005.6,3005.5,0.818849]
[1764474631238,10.73344668,3005.6,3005.5,0.818849]
[1764474631442,10.94444668,3005.6,3005.5,0.818849]
[1764474632258,10.73344668,3005.6,3005.5,0.818849]
[1764474632457,10.94444668,3005.6,3005.5,0.818849]
[1764474637297,10.60851235,3005.6,3005.5,0.818849]
[1764474637818,10.94444668,3005.6,3005.5,0.818849]
[1764474639793,10.39751235,3005.6,3005.5,0.818849]
[1764474640096,4.24851235,3005.6,3005.5,0.818849]
[1764474645924,4.58444668,3005.6,3005.5,0.818849]
[1764474647199,4.24851235,3005.6,3005.5,0.818849]
[1764474647398,4.58444668,3005.6,3005.5,0.818849]
[1764474647887,4.24851235,3005.6,3005.5,0.818849]
[1764474649870,4.58444668,3005.6,3005.5,0.818849]
[1764474651298,4.24851235,3005.6,3005.5,0.818849]
[1764474653672,4.58444668,3005.6,3005.5,0.818849]
[1764474654715,4.24851235,3005.6,3005.5,0.818849]
[1764474656579,4.03751235,3005.6,3005.5,0.818849]
[1764474656780,4.24851235,3005.6,3005.5,0.818849]
[1764474657783,0.002,3005.6,3005.5,0.818849]
[1764474657988,3.5401227,3005.6,3005.5,0.818849]
[1764474664018,0.002,3005.6,3005.5,0.818849]
[1764474664220,0.002,3005.6,3005.5,7.78372034]
[1764474664405,0.002,3005.6,3005.5,2.06334289]
[1764474664721,0.002,3005.6,3005.5,0.818849]
[1764474666209,0.002,3005.6,3005.5,0.85212133]
[1764474668123,0.002,3005.6,3005.5,0.818849]
[1764474668802,0.2884,3005.6,3005.5,0.001]
[1764474670722,3.6155227,3005.6,3005.5,0.001]
[1764474670935,5.90036411,3005.6,3005.5,0.001]
[1764474671436,5.99955439,3005.6,3005.5,0.001]
[1764474672032,5.56442978,3005.6,3005.5,0.001]
[1764474672237,5.90036411,3005.6,3005.5,0.001]
[1764474672408,5.99955439,3005.6,3005.5,0.001]
[1764474672609,5.90036411,3005.6,3005.5,0.001]
[1764474674942,4.26571681,3005.6,3005.5,0.4804]
[1764474675440,4.60165114,3005.6,3005.5,0.4804]
[1764474676044,5.09715114,3005.6,3005.5,0.001]
[1764474677332,5.19634142,3005.6,3005.5,0.001]
[1764474677518,6.39702025,3005.6,3005.5,0.001]
[1764474678048,6.29782997,3005.6,3005.5,0.001]
[1764474678415,5.80232997,3005.6,3005.5,0.4804]
[1764474679016,5.80232997,3005.6,3005.5,0.001]
[1764474679245,6.08872997,3005.6,3005.5,0.001]
[1764474679416,5.75279564,3005.6,3005.5,0.001]
[1764474679946,6.08872997,3005.6,3005.5,0.001]
[1764474680132,5.75279564,3005.6,3005.5,0.001]
[1764474680334,5.46639564,3005.6,3005.5,0.4804]
[1764474680545,5.80232997,3005.6,3005.5,0.4804]
[1764474684857,5.46639564,3005.6,3005.5,0.4804]
[1764474685053,5.46639564,3005.6,3005.5,0.001]
[1764474685961,5.75279564,3005.6,3005.5,0.001]
[1764474686654,9.54041986,3005.6,3005.5,0.001]
[1764474686855,9.87635419,3005.6,3005.5,0.001]
[1764474687155,9.77716391,3005.6,3005.5,0.001]
[1764474687355,9.32086391,3005.6,3005.5,0.001]
[1764474687525,4.26571681,3005.6,3005.5,0.4602]
[1764474687845,4.52911681,3005.6,3005.5,0.001]
[1764474688050,4.86505114,3005.6,3005.5,0.001]
[1764474688416,8.09718508,3005.6,3005.5,0.001]
[1764474688621,8.57628508,3005.6,3005.5,0.001]
[1764474689648,8.09718508,3005.6,3005.5,0.001]
[1764474690150,7.83378508,3005.6,3005.5,0.001]
[1764474690826,8.09928508,3005.6,3005.5,0.001]
[1764474691772,8.67547536,3005.6,3005.5,0.001]
[1764474692445,9.87592419,3005.6,3005.5,0.001]
[1764474696168,9.44079958,3005.6,3005.5,0.001]
[1764474696373,9.87592419,3005.6,3005.5,0.001]
[1764474698364,14.18606819,3005.6,3005.5,0.001]
[1764474698534,14.31942752,3005.6,3005.5,0.001]
[1764474700261,20.67942752,3005.6,3005.5,0.001]
[1764474704455,20.34349319,3005.6,3005.5,0.001]
[1764474704656,20.67942752,3005.6,3005.5,0.001]
[1764474704864,19.32625752,3005.6,3005.5,0.001]
[1764474705242,19.11525752,3005.6,3005.5,0.001]
[1764474705466,16.36928352,3005.6,3005.5,0.001]
[1764474706367,10.75065114,3005.6,3005.5,0.4602]
[1764474706568,11.06084142,3005.6,3005.5,0.4602]
[1764474707879,10.96165114,3005.6,3005.5,0.4602]
[1764474708245,11.06084142,3005.6,3005.5,0.4602]
[1764474709081,10.96165114,3005.6,3005.5,0.4602]
[1764474709389,10.96165114,3005.6,3005.5,0.9402]
[1764474710481,11.06084142,3005.6,3005.5,0.9402]
[1764474710986,11.06084142,3005.6,3005.5,0.4602]
[1764474711891,10.96165114,3005.6,3005.5,0.4602]
[1764474712056,11.06084142,3005.6,3005.5,0.4602]
[1764474712255,10.84984142,3005.6,3005.5,0.4602]
[1764474712475,11.06084142,3005.6,3005.5,0.4602]
[1764474713880,11.06084142,3005.6,3005.5,0.912]
[1764474714579,11.06084142,3005.6,3005.5,0.4602]
[1764474714982,10.62571681,3005.6,3005.5,0.4602]
[1764474715981,10.62571681,3005.6,3005.5,0.912]
[1764474716183,11.06084142,3005.6,3005.5,0.912]
[1764474716581,10.96165114,3005.6,3005.5,0.912]
[1764474717083,10.75065114,3005.6,3005.5,0.912]
[1764474717277,10.96165114,3005.6,3005.5,0.912]
[1764474718289,10.96165114,3005.6,3005.5,0.4602]
[1764474719179,11.06084142,3005.6,3005.5,0.4602]
[1764474720193,10.96165114,3005.6,3005.5,0.4602]
[1764474721490,10.96165114,3005.6,3005.5,0.912]
[1764474721789,10.23605703,3005.6,3005.5,0.912]
[1764474721989,10.96165114,3005.6,3005.5,0.912]
[1764474722692,10.96165114,3005.6,3005.5,0.4602]
[1764474724098,10.96165114,3005.6,3005.5,0.912]
[1764474726505,10.96165114,3005.6,3005.5,0.4602]
[1764474728098,11.06084142,3005.6,3005.5,0.4602]
[1764474728394,10.96165114,3005.6,3005.5,0.001]
[1764474731009,10.96165114,3005.6,3005.5,0.4762]
[1764474731179,10.96165114,3005.6,3005.5,0.928]
[1764474732701,10.62571681,3005.6,3005.5,0.928]
[1764474733805,10.96165114,3005.6,3005.5,0.928]
[1764474734176,10.62571681,3005.6,3005.5,0.928]
[1764474736094,10.96165114,3005.6,3005.5,0.4762]
[1764474736404,10.96165114,3005.6,3005.5,0.928]
[1764474737510,10.62571681,3005.6,3005.5,0.4762]
[1764474738196,11.06084142,3005.6,3005.5,0.4762]
[1764474739110,10.96165114,3005.6,3005.5,0.4762]
[1764474740077,13.24262685,3005.6,3005.5,0.001]
[1764474740403,12.69043657,3005.6,3005.5,0.001]
[1764474740905,13.14323657,3005.6,3005.5,0.001]
[1764474742504,13.24242685,3005.6,3005.5,0.001]
[1764474742694,13.03142685,3005.6,3005.5,0.001]
[1764474742897,13.24242685,3005.6,3005.5,0.001]
[1764474743309,13.69542685,3005.6,3005.5,0.001]
[1764474743606,13.59623657,3005.6,3005.5,0.001]
[1764474743788,13.69542685,3005.6,3005.5,0.001]
[1764474744304,13.59623657,3005.6,3005.5,0.001]
[1764474744480,13.14323657,3005.6,3005.5,0.001]
[1764474744803,13.14323657,3005.6,3005.5,0.4949]
[1764474744804,10.62571681,3005.6,3005.5,0.4949]
[1764474745010,10.96165114,3005.6,3005.5,0.4949]
[1764474748206,11.06084142,3005.6,3005.5,0.4949]
[1764474748391,10.96165114,3005.6,3005.5,0.4949]
[1764474749797,10.96165114,3005.6,3005.5,0.9716]
[1764474749993,10.62571681,3005.6,3005.5,0.9716]
[1764474750387,10.96165114,3005.6,3005.5,0.4949]
[1764474751523,14.47880997,3005.6,3005.5,0.001]
[1764474751897,14.19460997,3005.6,3005.5,0.4949]
[1764474753994,13.95786592,3005.6,3005.5,0.001]
[1764474754222,14.29380025,3005.6,3005.5,0.001]
[1764474754522,14.19460997,3005.6,3005.5,0.001]
[1764474754750,14.48050997,3005.6,3005.5,0.001]
[1764474759235,14.19460997,3005.6,3005.5,0.001]
[1764474759433,14.29380025,3005.6,3005.5,0.4949]
[1764474759637,14.19460997,3005.6,3005.5,0.4949]
[1764474759934,14.19460997,3005.6,3005.5,0.9716]
[1764474760339,10.96165114,3005.6,3005.5,0.9716]
[1764474760705,10.62571681,3005.6,3005.5,0.9716]
[1764474761130,10.96165114,3005.6,3005.5,0.9716]
[1764474761625,10.62571681,3005.6,3005.5,0.9716]
[1764474762330,13.85867564,3005.6,3005.5,0.4949]
[1764474762528,14.19460997,3005.6,3005.5,0.4949]
[1764474763541,13.85867564,3005.6,3005.5,0.4949]
[1764474763714,14.19460997,3005.6,3005.5,0.4949]
[1764474764541,13.85867564,3005.6,3005.5,0.4949]
[1764474764840,14.19460997,3005.6,3005.5,0.4949]
[1764474765240,13.85867564,3005.6,3005.5,0.4949]
[1764474766339,13.85867564,3005.6,3005.5,0.001]
[1764474766644,14.14287564,3005.6,3005.5,0.001]
[1764474766846,15.93955472,3005.6,3005.5,0.001]
[1764474767227,16.27548905,3005.6,3005.5,0.001]
[1764474769452,15.93955472,3005.6,3005.5,0.001]
[1764474769623,16.27548905,3005.6,3005.5,0.001]
[1764474770027,15.99128905,3005.6,3005.5,0.001]
[1764474770844,15.99128905,3005.6,3005.5,0.4949]
[1764474771049,10.62571681,3005.6,3005.5,0.9716]
[1764474773625,10.62571681,3005.6,3005.5,0.4949]
[1764474773954,10.62571681,3005.6,3005.5,0.9666]
[1764474775034,10.96165114,3005.6,3005.5,0.9666]
[1764474775433,10.75065114,3005.6,3005.5,0.9666]
[1764474775636,10.96165114,3005.6,3005.5,0.9666]
[1764474776548,10.62571681,3005.6,3005.5,0.001]
[1764474776747,10.62571681,3005.6,3005.5,0.4986]
[1764474777335,10.62571681,3005.6,3005.5,0.9703]
[1764474779063,10.41471681,3005.6,3005.5,0.9703]
[1764474779226,10.62571681,3005.6,3005.5,0.9703]
[1764474780858,10.41471681,3005.6,3005.5,0.9703]
[1764474781157,10.62571681,3005.6,3005.5,0.9703]
[1764474784745,13.85859963,3005.6,3005.5,0.9703]
[1764474785492,13.64759963,3005.6,3005.5,0.9703]
[1764474785667,13.85859963,3005.6,3005.5,0.9703]
[1764474786994,14.48403396,3005.6,3005.5,0.001]
[1764474787301,16.65599544,3005.6,3005.5,0.001]
[1764474788558,16.75518572,3005.6,3005.5,0.001]
[1764474788756,16.88853661,3005.6,3005.5,0.001]
[1764474789753,16.78934633,3005.6,3005.5,0.001]
[1764474790374,16.33614633,3005.6,3005.5,0.001]
[1764474790883,16.000212,3005.6,3005.5,0.001]
[1764474791187,16.33614633,3005.6,3005.5,0.001]
[1764474798902,16.000212,3005.6,3005.5,0.001]
[1764474799066,16.33614633,3005.6,3005.5,0.001]
[1764474799264,16.000212,3005.6,3005.5,0.001]
[1764474799465,16.33614633,3005.6,3005.5,0.001]
[1764474801690,16.000212,3005.6,3005.5,0.001]
[1764474801990,16.33614633,3005.6,3005.5,0.001]
[1764474802377,16.000212,3005.6,3005.5,0.001]
[1764474802575,16.33614633,3005.6,3005.5,0.001]
[1764474804194,16.04664633,3005.6,3005.5,0.001]
[1764474804586,16.04664633,3005.6,3005.5,0.4877]
[1764474805397,15.83564633,3005.6,3005.5,0.4877]
[1764474805695,15.710712,3005.6,3005.5,0.4877]
[1764474805891,13.78095052,3005.6,3005.5,0.9439]
[1764474806064,13.99195052,3005.6,3005.5,0.9439]
[1764474806781,14.32788485,3005.6,3005.5,0.9439]
[1764474806980,13.99195052,3005.6,3005.5,0.9439]
[1764474810004,14.32788485,3005.6,3005.5,0.9439]
[1764474810203,14.11688485,3005.6,3005.5,0.9439]
[1764474810405,13.99195052,3005.6,3005.5,0.9439]
[1764474811212,14.32788485,3005.6,3005.5,0.9439]
[1764474812074,14.11688485,3005.6,3005.5,0.9439]
[1764474812306,14.32788485,3005.6,3005.5,0.9439]
[1764474813008,14.32788485,3005.6,3005.5,0.4877]
[1764474813177,13.99195052,3005.6,3005.5,0.4877]
[1764474813377,14.32788485,3005.6,3005.5,0.4877]
[1764474815409,13.99195052,3005.6,3005.5,0.9439]
[1764474815612,14.32788485,3005.6,3005.5,0.9439]
[1764474815786,13.78095052,3005.6,3005.5,0.9439]
[1764474815992,13.99195052,3005.6,3005.5,0.9439]
[1764474818221,14.32788485,3005.6,3005.5,0.9439]
[1764474819694,0.13535089,3005.6,3005.5,0.9439]
[1764474819894,0.002,3005.6,3005.5,0.9439]
[1764474820118,0.002,3005.6,3005.5,1.37113309]
[1764474820314,0.002,3005.6,3005.5,0.9439]
[1764474841608,0.002,3005.6,3005.5,4.70990973]
[1764474841942,0.002,3005.6,3005.5,2.38239807]
[1764474842438,0.002,3005.6,3005.5,5.67635914]
[1764474843208,0.002,3005.6,3005.5,5.70963147]
[1764474843409,0.002,3005.6,3005.5,6.95781703]
[1764474843724,0.002,3005.6,3005.5,6.9245447]
[1764474845340,0.002,3005.6,3005.5,6.9245447]
[1764474846804,0.002,3005.6,3005.5,3.5973113]
[1764474847008,0.002,3005.6,3005.5,5.67635914]
[1764474847941,0.002,3005.6,3005.5,6.40195325]
[1764474848112,0.002,3005.6,3005.5,9.99831489]
[1764474848307,0.002,3005.6,3005.5,9.96504256]
[1764474851934,0.002,3005.6,3005.5,6.73443573]
[1764474852138,0.002,3005.6,3005.5,7.76181351]
[1764474852343,0.002,3005.6,3005.5,7.42933103]
[1764474853339,0.002,3005.6,3005.5,7.76181351]
[1764474853515,0.002,3005.6,3005.5,7.42933103]
[1764474855350,0.002,3005.6,3005.5,7.76181351]
[1764474855542,0.002,3005.6,3005.5,7.42933103]
[1764474855744,0.002,3005.8,3005.7,3.96859331]
[1764474856047,0.002,3005.8,3005.7,6.57735279]
[1764474856217,0.002,3005.8,3005.7,7.05235279]
[1764474856418,0.002,3005.8,3005.7,7.18560683]
[1764474857314,0.002,3005.8,3005.7,7.28201201]
[1764474857527,0.002,3005.8,3005.7,6.94952953]
[1764474858628,0.002,3005.8,3005.7,10.18013636]
[1764474858836,0.002,3005.8,3005.7,10.51261884]
[1764474859140,0.002,3005.8,3005.7,6.94952953]
[1764474859340,0.002,3005.8,3005.7,7.28201201]
[1764474862458,0.002,3005.8,3005.7,10.18013636]
[1764474863726,0.7427,3005.8,3005.7,1.43196537]
[1764474863945,0.7427,3005.8,3005.5,0.001]
[1764474864144,0.0049,3005.6,3005.5,0.001]
[1764474864339,0.0049,3005.6,3005.5,0.406504]
[1764474864536,0.0049,3005.6,3005.5,0.001]
[1764474866458,0.0049,3005.6,3005.5,1.1127435]
[1764474866655,0.4971,3005.6,3005.5,0.406504]
[1764474866830,0.4971,3005.6,3005.5,3.7337374]
[1764474867233,0.4971,3005.6,3005.5,0.406504]
[1764474867662,0.4971,3005.6,3005.5,3.7337374]
[1764474869028,0.0049,3005.6,3005.5,0.001]
[1764474869236,0.4997,3005.6,3005.5,0.001]
[1764474869746,4.20968451,3005.6,3005.5,0.001]
[1764474870852,0.4997,3005.6,3005.5,0.001]
[1764474873782,0.002,3005.8,3005.6,0.405504]
[1764474873958,0.002,3005.8,3005.7,0.4924]
[1764474875595,0.002,3005.8,3005.7,0.93117412]
[1764474875802,0.002,3005.8,3005.7,1.40415385]
[1764474876383,0.002,3005.8,3005.7,4.73116586]
[1764474877880,0.2504,3005.8,3005.7,0.91175385]
[1764474878082,0.2504,3005.8,3005.7,0.87848373]
[1764474878282,0.002,3005.8,3005.7,4.69789574]
[1764474878787,0.002,3005.8,3005.7,5.16829574]
[1764474880195,0.002,3005.8,3005.7,5.20156586]
[1764474880703,0.002,3005.8,3005.7,5.16829574]
[1764474881063,0.002,3005.8,3005.7,4.69789574]
[1764474881577,0.002,3005.8,3005.7,5.16829574]
[1764474882302,0.002,3005.8,3005.7,4.69789574]
[1764474884782,0.002,3005.8,3005.7,5.16829574]
[1764474885386,0.002,3005.8,3005.7,4.69789574]
[1764474885560,0.002,3005.8,3005.7,1.37088373]
[1764474886866,0.002,3005.8,3005.7,0.87848373]
[1764474887061,0.002,3005.8,3005.7,4.20549574]
[1764474887261,0.002,3005.8,3005.7,4.69789574]
[1764474888402,0.002,3005.8,3005.7,4.20549574]
[1764474889312,0.2504,3005.8,3005.5,0.001]
[1764474889499,0.0049,3005.6,3005.5,0.406504]
[1764474895567,0.4944,3005.8,3005.5,0.406504]
[1764474895769,0.2508,3005.6,3005.5,0.406504]
[1764474897097,0.2528,3005.6,3005.5,3.7337374]
[1764474897298,0.002,3005.6,3005.5,3.7337374]
[1764474897518,0.2528,3005.6,3005.5,0.406504]
[1764474897698,0.7427,3005.6,3005.5,0.406504]
[1764474898699,0.7427,3005.6,3005.5,0.001]
[1764474901625,0.2528,3005.6,3005.5,0.001]
[1764474901819,0.212,3005.6,3005.5,0.4829]
[1764474902727,0.002,3005.6,3005.5,0.4829]
[1764474904332,0.002,3005.6,3005.5,4.64774726]
[1764474904629,0.2453,3005.6,3005.5,0.43310986]
[1764474904839,0.7427,3005.6,3005.5,0.001]
[1764474905431,0.2453,3005.6,3005.5,0.001]
[1764474905738,0.002,3005.6,3005.5,0.001]
[1764474906632,0.2478,3005.6,3005.5,0.001]
[1764474906844,0.7427,3005.6,3005.5,0.001]
[1764474907312,0.2478,3005.6,3005.5,0.001]
[1764474908545,4.0698227,3005.6,3005.5,0.001]
[1764474910141,4.83070631,3005.6,3005.5,0.001]
[1764474911032,5.16664064,3005.6,3005.5,0.001]
[1764474914447,5.26583092,3005.6,3005.5,0.001]
[1764474914842,5.16664064,3005.6,3005.5,0.001]
[1764474915357,5.26583092,3005.6,3005.5,0.001]
[1764474916145,5.16664064,3005.6,3005.5,0.001]
[1764474916533,1.00868361,3005.6,3005.5,0.001]
[1764474916853,0.4578,3005.6,3005.5,0.001]
[1764474917208,0.9527,3005.6,3005.5,0.001]
[1764474917411,4.2798227,3005.6,3005.5,0.001]
[1764474919737,0.212,3005.6,3005.5,0.9595]
[1764474919948,0.212,3005.6,3005.5,0.4829]
[1764474920347,0.212,3005.6,3005.5,0.001]
[1764474921452,0.2453,3005.6,3005.5,0.001]
[1764474921660,0.212,3005.6,3005.5,0.4829]
[1764474924319,0.212,3005.6,3005.5,0.9335]
[1764474927324,0.212,3005.6,3005.5,0.4829]
[1764474927537,0.212,3005.6,3005.5,0.001]
[1764474928156,0.002,3005.6,3005.5,0.001]
[1764474929424,0.002,3005.6,3005.5,0.4689]
[1764474931359,0.002,3005.6,3005.5,0.9545]
[1764474938370,0.002,3005.6,3005.5,1.38611668]
[1764474945262,0.002,3005.6,3005.5,0.9545]
[1764474946062,0.2704,3005.6,3005.5,0.001]
[1764474947942,0.7429,3005.6,3005.5,0.001]
[1764474949055,4.0700227,3005.6,3005.5,0.001]
[1764474952973,7.63734025,3005.6,3005.5,0.001]
[1764474953156,8.73397571,3005.6,3005.5,0.001]
[1764474953570,5.16665816,3005.6,3005.5,0.001]
[1764474953875,5.50259249,3005.6,3005.5,0.001]
[1764474954777,5.16665816,3005.6,3005.5,0.001]
[1764474961256,5.50259249,3005.6,3005.5,0.001]
[1764474961983,5.16665816,3005.6,3005.5,0.001]
[1764474962153,4.0700227,3005.6,3005.5,0.001]
[1764474962353,4.0680227,3005.6,3005.5,0.001]
[1764474963489,3.5955227,3005.6,3005.5,0.001]
[1764474964889,4.40595703,3005.6,3005.5,0.001]
[1764474965083,4.0700227,3005.6,3005.5,0.001]
[1764474967659,4.2800227,3005.6,3005.5,0.001]
[1764474968986,4.61595703,3005.6,3005.5,0.001]
[1764474969686,4.2800227,3005.6,3005.5,0.001]
[1764474970288,4.61595703,3005.6,3005.5,0.001]
[1764474975991,4.2800227,3005.6,3005.5,0.001]
[1764474978187,4.61595703,3005.6,3005.5,0.001]
[1764474980295,4.2800227,3005.6,3005.5,0.001]
[1764474982698,3.8075227,3005.6,3005.5,0.001]
[1764474983505,4.14345703,3005.6,3005.5,0.001]
[1764474984104,3.5975227,3005.6,3005.5,0.001]
[1764474984304,0.212,3005.6,3005.5,0.964]
[1764474984599,0.212,3005.6,3005.5,0.4767]
[1764474985007,3.5391227,3005.6,3005.5,0.4767]
[1764474985200,3.8025227,3005.6,3005.5,0.001]
[1764474985505,4.13845703,3005.6,3005.5,0.001]
[1764474985694,4.61585703,3005.6,3005.5,0.001]
[1764474986301,4.40585703,3005.6,3005.5,0.001]
[1764474986507,4.2799227,3005.6,3005.5,0.001]
[1764474989107,4.61585703,3005.6,3005.5,0.001]
[1764474990607,5.88589579,3005.6,3005.5,0.001]
[1764474990798,6.22183012,3005.6,3005.5,0.001]
[1764474990996,6.45436773,3005.6,3005.5,0.001]
[1764474991903,6.35517745,3005.6,3005.5,0.001]
[1764474992105,5.54184312,3005.6,3005.5,0.001]
[1764474994678,6.01924312,3005.6,3005.5,0.001]
[1764474995326,5.54184312,3005.6,3005.5,0.001]
[1764474997225,5.87777745,3005.6,3005.5,0.001]
[1764474998926,5.54184312,3005.6,3005.5,0.001]
[1764474999388,5.87777745,3005.6,3005.5,0.001]
[1764475005428,5.54184312,3005.6,3005.5,0.001]
[1764475005595,5.87777745,3005.6,3005.5,0.001]
[1764475006031,5.54184312,3005.6,3005.5,0.001]
[1764475008106,0.86094144,3005.6,3005.5,0.9454]
[1764475008430,4.26471681,3005.6,3005.5,0.9454]
[1764475009010,0.002,3005.6,3005.5,0.9454]
[1764475009731,0.002,3005.6,3005.5,1.1554]
[1764475009940,0.002,3005.6,3005.5,1.60377358]
[1764475010930,0.002,3005.6,3005.5,1.1554]
[1764475015059,0.002,3005.6,3005.5,4.4826334]
[1764475015645,0.002,3005.6,3005.5,1.1554]
[1764475017852,0.002,3005.6,3005.5,4.8881374]
[1764475019355,0.002,3005.6,3005.5,1.560904]
[1764475021354,0.002,3005.6,3005.5,2.04982708]
[1764475021553,0.002,3005.6,3005.5,5.37706048]
[1764475021742,0.002,3005.6,3005.5,2.04982708]
[1764475021948,0.002,3005.6,3005.5,1.560904]
[1764475022854,0.002,3005.6,3005.5,4.8881374]
[1764475023439,0.002,3005.6,3005.5,1.560904]
[1764475024561,0.002,3005.6,3005.5,4.8881374]
[1764475024728,0.002,3005.6,3005.5,4.92140973]
[1764475024927,0.002,3005.6,3005.5,4.8881374]
[1764475025156,0.002,3005.6,3005.5,5.74306678]
[1764475025349,0.002,3005.6,3005.5,6.07554926]
[1764475025653,0.002,3005.6,3005.5,9.30796557]
[1764475025858,0.002,3005.6,3005.5,9.27469324]
[1764475026633,0.002,3005.6,3005.5,8.93940011]
[1764475026832,0.002,3005.6,3005.5,9.27188259]
[1764475027030,0.002,3005.8,3005.7,0.73798648]
[1764475027235,0.002,3005.8,3005.7,6.62628679]
[1764475027435,0.002,3005.8,3005.7,7.11268679]
[1764475027633,0.002,3005.8,3005.7,10.53968894]
[1764475031360,0.002,3005.8,3005.7,10.20720646]
[1764475036556,0.002,3005.8,3005.7,10.53968894]
[1764475039966,0.002,3005.8,3005.7,6.9776008]
[1764475043448,0.002,3005.8,3005.7,7.31008328]
[1764475045690,0.002,3005.8,3005.7,6.9776008]
[1764475045845,0.002,3005.8,3005.7,7.31008328]
[1764475046046,0.002,3005.8,3005.7,6.9776008]
[1764475046360,0.002,3005.8,3005.7,7.31008328]
[1764475047002,0.002,3005.8,3005.7,6.9776008]
[1764475050775,0.002,3005.8,3005.7,7.31008328]
[1764475051799,0.002,3005.8,3005.7,6.9776008]
[1764475052014,0.2503,3005.8,3005.7,4.86530269]
[1764475052173,0.7299,3005.8,3005.7,3.46027227]
[1764475052371,0.2503,3005.8,3005.7,3.46027227]
[1764475052575,0.2503,3005.8,3005.7,3.49354239]
[1764475052781,0.2503,3005.8,3005.7,3.89904639]
[1764475053279,0.002,3005.8,3005.7,5.11021309]
[1764475053595,0.002,3005.8,3005.7,5.59441309]
[1764475056700,0.002,3005.8,3005.7,5.62768321]
[1764475057192,0.002,3005.8,3005.7,5.11021309]
[1764475058499,0.002,3005.8,3005.7,5.14348321]
[1764475058688,0.002,3005.8,3005.7,5.62768321]
[1764475060292,0.002,3005.8,3005.7,5.59441309]
[1764475060712,0.002,3005.8,3005.7,5.62768321]
[1764475067196,0.002,3005.8,3005.7,8.85728887]
[1764475067513,0.002,3005.8,3005.7,8.82401875]
[1764475067872,0.002,3005.8,3005.7,5.59441309]
[1764475068072,0.002,3005.8,3005.7,5.62768321]
[1764475069598,0.002,3005.8,3005.7,5.14348321]
[1764475069802,0.002,3005.8,3005.7,1.30990108]
[1764475069803,0.732,3005.8,3005.7,1.30990108]
[1764475070303,0.732,3005.8,3005.7,0.53876426]
[1764475070703,0.732,3005.8,3005.5,0.001]
[1764475070906,0.4548,3005.6,3005.5,0.001]
[1764475071394,0.73,3005.6,3005.5,0.001]
[1764475071702,0.73,3005.6,3005.5,0.406504]
[1764475071902,0.73,3005.6,3005.5,0.001]
[1764475072296,1.12616057,3005.6,3005.5,0.001]
[1764475072906,0.73,3005.6,3005.5,0.001]
[1764475078884,0.4548,3005.6,3005.5,0.001]
[1764475079710,0.73,3005.6,3005.5,0.001]
[1764475080892,0.732,3005.6,3005.5,0.001]
[1764475081610,0.002,3005.6,3005.5,0.4785]
[1764475081811,0.002,3005.6,3005.5,1.34261035]
[1764475082111,0.7302,3005.6,3005.5,0.03427233]
[1764475082287,0.7302,3005.6,3005.5,0.001]
[1764475095299,4.0573227,3005.6,3005.5,0.001]
[1764475097405,4.39325703,3005.6,3005.5,0.001]
[1764475097607,4.0573227,3005.6,3005.5,0.001]
[1764475097805,5.15289083,3005.6,3005.5,0.001]
[1764475100242,4.8169565,3005.6,3005.5,0.001]
[1764475100543,5.15289083,3005.6,3005.5,0.001]
[1764475102842,5.25208111,3005.6,3005.5,0.001]
[1764475103210,5.15289083,3005.6,3005.5,0.001]
[1764475107554,8.77471603,3005.6,3005.5,0.001]
[1764475107718,9.11065036,3005.6,3005.5,0.001]
[1764475109243,8.77471603,3005.6,3005.5,0.001]
[1764475109543,9.11065036,3005.6,3005.5,0.001]
[1764475110436,5.54255061,3005.6,3005.5,0.001]
[1764475111950,5.97767522,3005.6,3005.5,0.001]
[1764475112954,5.87848494,3005.6,3005.5,0.001]
[1764475113431,5.97767522,3005.6,3005.5,0.001]
[1764475113834,8.77471603,3005.6,3005.5,0.001]
[1764475114039,9.11065036,3005.6,3005.5,0.001]
[1764475115856,9.20984064,3005.6,3005.5,0.001]
[1764475118663,9.11065036,3005.6,3005.5,0.001]
[1764475121057,8.77471603,3005.6,3005.5,0.001]
[1764475121259,8.98471603,3005.6,3005.5,0.001]
[1764475121465,9.32065036,3005.6,3005.5,0.001]
[1764475121971,9.41984064,3005.6,3005.5,0.001]
[1764475124172,9.32065036,3005.6,3005.5,0.001]
[1764475125073,9.41984064,3005.6,3005.5,0.001]
[1764475125274,8.86505036,3005.6,3005.5,0.001]
[1764475125574,9.32065036,3005.6,3005.5,0.001]
[1764475127044,9.41984064,3005.6,3005.5,0.001]
[1764475129077,8.98471603,3005.6,3005.5,0.001]
[1764475129246,9.32065036,3005.6,3005.5,0.001]
[1764475129449,9.41984064,3005.6,3005.5,0.001]